[Event "ESTCC U65 2018"]
[Site "Walbrzych"]
[Date "2018.04.22"]
[Round "9"]
[White "Gustavsson, Bo"]
[Black "Kauko, Pekka"]
[Result "1-0"]
[ECO "B12"]
[WhiteElo "1915"]
[BlackElo "1961"]
[Annotator "NA"]
[PlyCount "93"]
[EventDate "2018.??.??"]
[EventCountry "POL"]
[SourceTitle "playchess.com"]
[Source "ChessBase"]
[SourceQuality "1"]
[WhiteTeam "Sweden"]
[BlackTeam "Finland"]
[WhiteTeamCountry "SWE"]
[BlackTeamCountry "FIN"]
[TimeControl "40/5400+30:1800+30"]

1. e4 {[%emt 0:00:00]} c6 {[%emt 0:00:07]} 2. d4 {[%emt 0:00:01]} d5 {[%emt 0:00:06]} 3. e5 {[%emt 0:00:31]} g6 {[%emt 0:00:25]} 4. f4 {[%emt 0:00:12]} Nh6 {[%emt 0:00:55]} 5. Nf3 {[%emt 0:00:19]} Bg7 {[%emt 0:00:31]} 6. Bd3 {[%emt 0:00:43]} O-O {[%emt 0:00:31]} 7. O-O {[%emt 0:01:39]} a6 {[%emt 0:03:12]} 8. a4 {[%emt 0:01:34]} Qc7 {[%emt 0:01:32]} 9. c4 {[%emt 0:01:13]} b6 {[%emt 0:09:20]} 10. cxd5 {[%emt 0:02:24]} cxd5 {[%emt 0:08:13]} 11. Nc3 {[%emt 0:02:26]} Qd7 {[%emt 0:03:12]} 12. Qb3 {[%emt 0:00:35]} e6 {[%emt 0:03:28]} 13. Qxb6 {[%emt 0:01:09]} Nc6 {[%emt 0:00:49]} 14. Qc5 {[%emt 0:03:30]} Rd8 {[%emt 0:00:54]} 15. Qa3 {[%emt 0:00:15]} Rb8 {[%emt 0:01:52]} 16. Na2 {[%emt 0:02:31]} Bf8 {[%emt 0:06:59]} 17. Qc3 {[%emt 0:01:29]} Qb7 {[%emt 0:01:09]} 18. Rb1 {[%emt 0:01:51]} Nb4 {[%emt 0:00:49]} 19. Nxb4 {[%emt 0:00:12]} Bxb4 {[%emt 0:00:23]} 20. Qc2 {[%emt 0:03:05]} Bd7 {[%emt 0:01:51]} 21. b3 {[%emt 0:01:16]} Rdc8 {[%emt 0:01:10]} 22. Qe2 {[%emt 0:00:02]} Rc6 {[%emt 0:01:09]} 23. Be3 {[%emt 0:00:19]} Ng4 {[%emt 0:01:56]} 24. Bd2 {[%emt 0:01:01]} Rbc8 {[%emt 0:04:08]} 25. Bxb4 {[%emt 0:05:28]} Qxb4 {[%emt 0:00:17]} 26. Bxa6 {[%emt 0:00:04]} Rc2 {[%emt 0:00:31]} 27. Qe1 {[%emt 0:01:04]} Rb8 {[%emt 0:07:08]} 28. h3 {[%emt 0:05:19]} Nh6 {[%emt 0:04:16]} 29. Qxb4 {[%emt 0:00:50]} Rxb4 {[%emt 0:00:02]} 30. Bd3 {[%emt 0:00:40]} Rc3 {[%emt 0:00:47]} 31. Rfd1 {[%emt 0:02:34]} Rbxb3 {[%emt 0:01:06]} 32. Bb5 {[%emt 0:00:33]} Bxb5 {[%emt 0:06:07]} 33. axb5 {[%emt 0:00:01]} Nf5 {[%emt 0:00:30]} 34. b6 {[%emt 0:01:12]} Rxb1 {[%emt 0:02:26]} 35. Rxb1 {[%emt 0:00:01]} Rc8 {[%emt 0:00:14]} 36. Kf2 {[%emt 0:01:31]} Kf8 {[%emt 0:00:34]} 37. Ke2 {[%emt 0:00:21]} Ke8 {[%emt 0:01:40]} 38. Kd3 {[%emt 0:00:12]} h6 {[%emt 0:00:30]} 39. Nd2 {[%emt 0:00:35]} Ne7 {[%emt 0:04:53]} 40. Nb3 {[%emt 0:00:00]} Nc6 {[%emt 0:02:48]} 41. Nc5 {[%emt 0:01:37]} Nb8 {[%emt 0:01:04]} 42. Ra1 {[%emt 0:02:49]} Nc6 {[%emt 0:01:54]} 43. Kc3 {[%emt 0:00:47]} Rb8 {[%emt 0:00:30]} 44. b7 {[%emt 0:00:36]} Kd8 {[%emt 0:01:51]} 45. Ra8 {[%emt 0:00:47]} Kc7 {[%emt 0:00:16]} 46. Na6+ {[%emt 0:00:53]} Kxb7 {[%emt 0:02:31]} 47. Nxb8 {[%emt 0:00:24]} 1-0

[Event "ESTCC U65 2018"]
[Site "Walbrzych"]
[Date "2018.04.22"]
[Round "9"]
[White "Auvinen, Esa"]
[Black "Kolbak, Jens"]
[Result "0-1"]
[ECO "C68"]
[WhiteElo "1888"]
[BlackElo "2213"]
[Annotator "NA"]
[PlyCount "51"]
[EventDate "2018.??.??"]
[EventCountry "POL"]
[SourceTitle "playchess.com"]
[Source "ChessBase"]
[SourceQuality "1"]
[WhiteTeam "Finland"]
[BlackTeam "Denmark"]
[WhiteTeamCountry "FIN"]
[BlackTeamCountry "DEN"]
[TimeControl "40/5400+30:1800+30"]

1. e4 {[%emt 0:00:00]} e5 {[%emt 0:00:07]} 2. Nf3 {[%emt 0:00:00]} Nc6 {[%emt 0:00:05]} 3. Bb5 {[%emt 0:00:00]} a6 {[%emt 0:00:14]} 4. Bxc6 {[%emt 0:00:00]} bxc6 {[%emt 0:00:15]} 5. Nxe5 {[%emt 0:01:20]} Qg5 {[%emt 0:00:55] C68: Ruy Lopez: Exchange Variation, sidelines} (5... Qe7 6. d4 f6 7. Nc4 Qxe4+ 8. Ne3 Bd6 9. O-O Qh4 10. g3 Qh3 11. c4 h5 12. Qe2 Kf7 13. c5 Be7 {1-0 (35) Zavgorodniy,S (2422)-Tarlev,K (2468) Evpatoria 2007}) 6. d4 {[%emt 0:00:43]} Qxg2 {[%emt 0:00:17]} 7. Qf3 {[%emt 0:00:08]} Qxf3 {[%emt 0:00:10]} 8. Nxf3 {[%emt 0:00:11]} d6 {[%emt 0:01:52]} 9. b3 $146 {[%emt 0:02:20]} ({Predecessor:} 9. Rg1 g6 10. Bd2 Nf6 11. Nc3 Bg7 12. O-O-O O-O 13. Bf4 {0-1 (26) Marco,G-Schlechter,C Monte Carlo 1904}) 9... Nf6 {[%emt 0:05:55]} 10. Nbd2 {[%emt 0:00:48]} Bg4 {[%emt 0:01:12]} 11. Ng1 {[%emt 0:06:20]} d5 {[%emt 0:06:11]} 12. f3 {[%emt 0:01:38]} Bh5 {[%emt 0:01:28]} 13. e5 {[%emt 0:05:25]} Nd7 {[%emt 0:00:34]} 14. c4 {[%emt 0:09:36]} Bb4 {[%emt 0:20:55]} 15. Bb2 {[%emt 0:00:56]} dxc4 {[%emt 0:01:08]} 16. bxc4 {[%emt 0:00:51]} Nb6 {[%emt 0:00:19]} 17. Rc1 {[%emt 0:00:43]} Rb8 {[%emt 0:05:42]} 18. Bc3 {[%emt 0:03:46]} Ba3 {[%emt 0:05:27]} 19. Rb1 {[%emt 0:00:50]} O-O $15 {[%emt 0:00:08]} 20. Bb4 {[%emt 0:09:03]} Bxb4 {[%emt 0:01:37]} 21. Rxb4 {[%emt 0:00:34]} c5 {[%emt 0:00:58]} 22. dxc5 {[%emt 0:00:54]} Nd7 {[%emt 0:00:14]} 23. Rxb8 {[%emt 0:07:17]} Rxb8 {[%emt 0:00:05]} 24. f4 {[%emt 0:10:39]} Nxc5 {[%emt 0:00:36]} 25. Ne2 {[%emt 0:00:58]} Nd3+ {[%emt 0:01:31]} 26. Kf1 0-1

[Event "ESTCC U65 2018"]
[Site "Walbrzych"]
[Date "2018.04.22"]
[Round "9"]
[White "Vehkalahti, Veli"]
[Black "Sorensen, Bent"]
[Result "1-0"]
[ECO "D02"]
[WhiteElo "1880"]
[BlackElo "2158"]
[Annotator "NA"]
[PlyCount "65"]
[EventDate "2018.??.??"]
[EventCountry "POL"]
[SourceTitle "playchess.com"]
[Source "ChessBase"]
[SourceQuality "1"]
[WhiteTeam "Finland"]
[BlackTeam "Denmark"]
[WhiteTeamCountry "FIN"]
[BlackTeamCountry "DEN"]
[TimeControl "40/5400+30:1800+30"]

1. d4 {[%emt 0:00:00]} d5 {[%emt 0:00:06]} 2. Nf3 {[%emt 0:00:00]} e6 {[%emt 0:00:06]} 3. Bf4 {[%emt 0:00:00]} Bd6 {[%emt 0:00:06]} 4. Bg3 {[%emt 0:00:07]} Nc6 {[%emt 0:01:11]} 5. e3 {[%emt 0:00:28]} Nge7 {[%emt 0:01:12]} 6. Bd3 {[%emt 0:01:42]} Bxg3 {[%emt 0:02:20]} 7. hxg3 {[%emt 0:00:14]} Qd6 {[%emt 0:02:00]} 8. c3 {[%emt 0:01:07]} e5 {[%emt 0:02:06]} 9. dxe5 {[%emt 0:00:24]} Nxe5 {[%emt 0:00:07]} 10. Nxe5 {[%emt 0:02:02]} Qxe5 {[%emt 0:00:05]} 11. Nd2 {[%emt 0:01:01]} Qf6 {[%emt 0:03:24]} 12. Qa4+ {[%emt 0:05:31]} Bd7 {[%emt 0:03:35]} 13. Qd4 {[%emt 0:02:19]} Qxd4 {[%emt 0:02:39]} 14. cxd4 {[%emt 0:01:07]} Bf5 {[%emt 0:02:24]} 15. Ke2 {[%emt 0:05:25]} Bxd3+ {[%emt 0:05:24]} 16. Kxd3 {[%emt 0:00:02]} Rc8 {[%emt 0:00:31]} 17. Rac1 {[%emt 0:00:39]} O-O {[%emt 0:02:31]} 18. g4 {[%emt 0:00:50]} Rfd8 {[%emt 0:03:46]} 19. Rh5 {[%emt 0:05:30]} g6 {[%emt 0:04:08]} 20. Rh3 {[%emt 0:03:25]} Kg7 {[%emt 0:01:35]} 21. Rch1 {[%emt 0:01:18]} Rh8 {[%emt 0:00:13]} 22. g5 {[%emt 0:09:20]} b6 {[%emt 0:04:30]} 23. Nf3 {[%emt 0:07:31]} c5 {[%emt 0:01:44]} 24. Ne5 {[%emt 0:01:38]} c4+ {[%emt 0:03:46]} 25. Kd2 {[%emt 0:12:31]} Nf5 {[%emt 0:07:41]} 26. f3 {[%emt 0:07:16]} Rc7 {[%emt 0:09:07]} 27. Ng4 {[%emt 0:04:20]} Re7 {[%emt 0:06:11]} 28. Nf6 {[%emt 0:04:02]} Rxe3 29. Rxh7+ Rxh7 {[%emt 0:03:17]} 30. Rxh7+ {[%emt 0:00:32]} Kf8 {[%emt 0:00:10]} 31. Rh8+ {[%emt 0:00:10]} Ke7 {[%emt 0:00:08]} 32. Re8+ {[%emt 0:00:03]} Kd6 {[%emt 0:00:10]} 33. Rxe3 1-0

[Event "ESTCC U65 2018"]
[Site "Walbrzych"]
[Date "2018.04.22"]
[Round "9"]
[White "Dalling, Peter"]
[Black "Alkkiomaki, Jyrki"]
[Result "1/2-1/2"]
[ECO "C27"]
[WhiteElo "1844"]
[BlackElo "1967"]
[Annotator "NA RC"]
[PlyCount "22"]
[EventDate "2018.??.??"]
[EventCountry "POL"]
[SourceTitle "playchess.com"]
[Source "ChessBase"]
[SourceQuality "1"]
[WhiteTeam "Sweden"]
[BlackTeam "Finland"]
[WhiteTeamCountry "SWE"]
[BlackTeamCountry "FIN"]
[TimeControl "40/5400+30:1800+30"]

1. e4 {[%emt 0:00:00]} e5 {[%emt 0:00:07]} 2. Bc4 {[%emt 0:00:00]} Nf6 {[%emt 0:00:10]} 3. Nc3 {[%emt 0:00:12]} Nxe4 {[%emt 0:00:50]} 4. Bxf7+ {[%emt 0:00:06]} Kxf7 {[%emt 0:00:04]} 5. Nxe4 {[%emt 0:00:08]} d5 {[%emt 0:00:08]} 6. Qf3+ {[%emt 0:01:32]} Ke8 {[%emt 0:01:34]} 7. Qh5+ {[%emt 0:00:18]} Kd7 {[%emt 0:02:47]} 8. Qh3+ Ke8 {[%emt 0:07:29]} 9. Qh5+ {[%emt 0:04:39]} Kd7 {[%emt 0:00:16]} 10. Qh3+ {[%emt 0:01:17]} Ke8 {[%emt 0:00:14]} 11. Qh5+ {[%emt 0:00:17]} Kd7 {[%emt 0:00:17]} 1/2-1/2

[Event "ESTCC U65 2018"]
[Site "Walbrzych"]
[Date "2018.04.22"]
[Round "9"]
[White "Fitzke, Ulrich"]
[Black "Pushkov, Nikolai"]
[Result "0-1"]
[ECO "A84"]
[WhiteElo "1827"]
[BlackElo "2304"]
[Annotator "ChessBase"]
[PlyCount "76"]
[EventDate "2018.??.??"]
[EventCountry "POL"]
[SourceTitle "playchess.com"]
[Source "ChessBase"]
[SourceQuality "1"]
[WhiteTeam "Germany"]
[BlackTeam "Russia"]
[WhiteTeamCountry "GER"]
[BlackTeamCountry "RUS"]
[TimeControl "40/5400+30:1800+30"]

1. d4 {[%emt 0:00:00]} e6 {[%emt 0:00:19]} 2. c4 {[%emt 0:00:14]} f5 {[%emt 0:00:08]} 3. Nc3 {[%emt 0:00:17]} Nf6 {[%emt 0:00:17]} 4. Nf3 {[%emt 0:00:48]} Bb4 {[%emt 0:00:31]} 5. Bd2 {[%emt 0:00:26]} O-O {[%emt 0:00:25]} 6. e3 {[%emt 0:00:24]} b6 {[%emt 0:01:08]} 7. g3 {[%emt 0:00:58]} Bb7 {[%emt 0:00:10]} 8. Bg2 {[%emt 0:00:29]} d6 {[%emt 0:00:34]} 9. O-O {[%emt 0:00:19]} Qe7 {[%emt 0:00:12]} 10. a3 {[%emt 0:01:18]} Bxc3 {[%emt 0:00:09]} 11. Bxc3 {[%emt 0:00:20]} Nbd7 {[%emt 0:00:41]} 12. Qc2 {[%emt 0:01:51]} Ne4 {[%emt 0:03:29]} 13. Nd2 {[%emt 0:01:06]} Ndf6 {[%emt 0:00:46]} 14. Nxe4 {[%emt 0:00:44]} Bxe4 {[%emt 0:00:14]} 15. Bxe4 {[%emt 0:01:47]} Nxe4 {[%emt 0:04:39]} 16. f3 {[%emt 0:00:52]} Ng5 {[%emt 0:21:00]} 17. h4 {[%emt 0:00:43]} Nf7 {[%emt 0:00:10]} 18. Rae1 {[%emt 0:01:24]} Qf6 {[%emt 0:05:04]} 19. Qh2 {[%emt 0:02:40]} e5 {[%emt 0:05:08]} 20. dxe5 {[%emt 0:02:14]} dxe5 {[%emt 0:00:06]} 21. g4 {[%emt 0:02:05]} fxg4 {[%emt 0:00:36]} 22. fxg4 {[%emt 0:00:30]} Qe6 {[%emt 0:00:10]} 23. Qg3 {[%emt 0:00:53]} Qxc4 {[%emt 0:04:01]} 24. g5 {[%emt 0:00:45]} Qe4 {[%emt 0:02:36]} 25. h5 {[%emt 0:00:50]} Rae8 {[%emt 0:00:47]} 26. g6 {[%emt 0:02:24]} hxg6 {[%emt 0:00:15]} 27. hxg6 {[%emt 0:00:32]} Nh8 {[%emt 0:01:10]} 28. Rxf8+ {[%emt 0:00:52]} Rxf8 {[%emt 0:00:03]} 29. Bxe5 {[%emt 0:02:31]} Nxg6 {[%emt 0:01:04]} 30. Bxc7 {[%emt 0:00:50]} Nh4 {[%emt 0:00:43]} 31. Bf4 {[%emt 0:05:46]} Nf3+ {[%emt 0:00:23]} 32. Kf2 {[%emt 0:01:05]} Nxe1 {[%emt 0:00:10]} 33. Kxe1 {[%emt 0:00:24]} Qb1+ {[%emt 0:01:50]} 34. Kf2 {[%emt 0:00:14]} Qxb2+ {[%emt 0:00:04]} 35. Kg1 {[%emt 0:00:22]} Rc8 {[%emt 0:01:39]} 36. e4 {[%emt 0:01:00]} Qb1+ {[%emt 0:00:21]} 37. Kh2 {[%emt 0:00:26]} Rc2+ {[%emt 0:00:32]} 38. Kh3 {[%emt 0:00:29]} Qh1+ {[%emt 0:00:10]} 0-1

[Event "ESTCC U65 2018"]
[Site "Walbrzych"]
[Date "2018.04.22"]
[Round "9"]
[White "Andersson, Finn"]
[Black "Lindholm, Pertti"]
[Result "1-0"]
[ECO "B92"]
[WhiteElo "1719"]
[BlackElo "1624"]
[Annotator "NA"]
[PlyCount "75"]
[EventDate "2018.??.??"]
[EventCountry "POL"]
[SourceTitle "playchess.com"]
[Source "ChessBase"]
[SourceQuality "1"]
[WhiteTeam "Denmark"]
[BlackTeam "Finland"]
[WhiteTeamCountry "DEN"]
[BlackTeamCountry "FIN"]
[TimeControl "40/5400+30:1800+30"]

1. e4 {[%emt 0:00:00]} c5 {[%emt 0:00:14]} 2. Nf3 {[%emt 0:00:00]} d6 {[%emt 0:00:12]} 3. d4 {[%emt 0:00:00]} cxd4 {[%emt 0:00:10]} 4. Nxd4 {[%emt 0:00:00]} Nf6 {[%emt 0:00:12]} 5. Nc3 {[%emt 0:00:00]} a6 {[%emt 0:00:14]} 6. Be2 {[%emt 0:00:12]} e5 {[%emt 0:00:44]} 7. Nb3 {[%emt 0:00:39]} Be6 {[%emt 0:00:53]} 8. Bg5 {[%emt 0:01:06]} Be7 {[%emt 0:00:20]} 9. Qd2 {[%emt 0:00:11]} Bxb3 {[%emt 0:02:19]} 10. axb3 {[%emt 0:00:16]} O-O {[%emt 0:00:36]} 11. O-O {[%emt 0:00:52]} Nc6 {[%emt 0:02:10]} 12. Kh1 {[%emt 0:10:15]} Nd4 {[%emt 0:02:53]} 13. Bd3 {[%emt 0:03:52]} Nh5 {[%emt 0:05:58]} 14. Be3 {[%emt 0:01:40]} f5 {[%emt 0:02:36]} 15. exf5 {[%emt 0:04:38]} Qd7 {[%emt 0:05:16]} 16. Bc4+ {[%emt 0:09:55]} Kh8 {[%emt 0:00:36]} 17. Bxd4 {[%emt 0:01:16]} exd4 {[%emt 0:00:15]} 18. Nd5 {[%emt 0:01:46]} Bd8 {[%emt 0:02:08]} 19. Qxd4 {[%emt 0:08:20]} Qxf5 {[%emt 0:02:12]} 20. Bd3 {[%emt 0:05:18]} Qf7 {[%emt 0:05:14]} 21. Qe4 {[%emt 0:05:14]} g6 {[%emt 0:01:58]} 22. f4 {[%emt 0:05:43]} Nf6 {[%emt 0:05:10]} 23. Nxf6 {[%emt 0:01:37]} Bxf6 {[%emt 0:00:20]} 24. Bc4 {[%emt 0:08:30]} Qg7 {[%emt 0:01:26]} 25. c3 {[%emt 0:00:30]} Rae8 {[%emt 0:02:52]} 26. Qf3 {[%emt 0:04:12]} Be5 {[%emt 0:02:16]} 27. Rae1 {[%emt 0:02:17]} b5 {[%emt 0:02:30]} 28. Bd5 {[%emt 0:00:23]} Bf6 {[%emt 0:01:23]} 29. b4 {[%emt 0:01:36]} g5 {[%emt 0:04:12]} 30. g3 {[%emt 0:06:13]} g4 {[%emt 0:01:28]} 31. Qf2 {[%emt 0:00:33]} Rd8 {[%emt 0:01:12]} 32. Qb6 {[%emt 0:00:38]} h5 {[%emt 0:01:47]} 33. Qxa6 {[%emt 0:00:38]} h4 {[%emt 0:00:47]} 34. Qxb5 {[%emt 0:00:45]} hxg3 {[%emt 0:00:38]} 35. hxg3 {[%emt 0:00:13]} Qh7+ {[%emt 0:01:14]} 36. Kg1 {[%emt 0:00:06]} Qc2 {[%emt 0:03:15]} 37. Be4 {[%emt 0:01:48]} Qxb2 {[%emt 0:00:57]} 38. Qh5+ {[%emt 0:00:08]} 1-0

[Event "ESTCC U65 2018"]
[Site "Walbrzych"]
[Date "2018.04.22"]
[Round "9"]
[White "Heikkila, Raine"]
[Black "Jorgensen, Arne Bjorn"]
[Result "0-1"]
[ECO "A45"]
[WhiteElo "1705"]
[BlackElo "1956"]
[Annotator "NA"]
[PlyCount "88"]
[EventDate "2018.??.??"]
[EventCountry "POL"]
[SourceTitle "playchess.com"]
[Source "ChessBase"]
[SourceQuality "1"]
[WhiteTeam "Finland"]
[BlackTeam "Denmark"]
[WhiteTeamCountry "FIN"]
[BlackTeamCountry "DEN"]
[TimeControl "40/5400+30:1800+30"]

1. d4 Nf6 2. Nc3 d5 3. Nf3 e6 4. Bg5 Nbd7 5. a3 {D01: Veresov Opening} (5. e4 h6 6. Bxf6 Nxf6 7. e5 Nd7 8. Ne2 c5 9. c3 Be7 10. a3 Qb6 11. Qd2 Nb8 12. dxc5 Bxc5 {½-½ (31) Vallejo Pons,F (2696)-Sargissian,G (2678) Ohrid 2009}) 5... c5 6. dxc5 Bxc5 7. e3 O-O 8. Bd3 h6 $146 ({Predecessor:} 8... Be7 9. O-O Nc5 10. Re1 Bd7 11. Ne5 Rc8 {0-1 (65) Day,L-Janata,M Lugano 1968}) 9. Bh4 a6 10. b4 Be7 11. O-O b5 12. Ne2 Bb7 13. c3 e5 14. Bf5 Rc8 15. Rc1 Ra8 16. Bb1 e4 17. Nfd4 Ne5 18. Nf5 Rc8 19. Ned4 Qd7 20. Nxe7+ Qxe7 21. Qe2 Rc7 22. f3 exf3 23. Nxf3 Neg4 24. Rfe1 Re8 25. Qd3 g6 26. h3 Ne5 27. Qd4 Rc4 28. Bxf6 Qxf6 29. Qd1 Nxf3+ 30. gxf3 Rxc3 31. Rxc3 Qxc3 32. Kf2 Qe5 33. f4 Qe7 34. Qg4 Bc8 35. Qg3 Qf6 36. Re2 Bf5 37. Ba2 $19 (37. Bxf5 Qxf5 38. Rd2) 37... Be4 38. Rd2 Qc3 39. Ke2 Qxa3 40. Bxd5 Bxd5 41. Rxd5 Qxb4 42. h4 Qc4+ 43. Rd3 Rd8 44. e4 Qc2+ 0-1